Cogmind - Beta 11.1 @@@ ROGUE MODE // 2022.05.05 @ 19:56:40 Player: kway_side Result: Destroyed by Y-54 Guardian with Gatling Laser Performance ------------- Evolutions (4) 2000 Regions Visited (8) 1600 Robots Destroyed (97) 485 Value Destroyed (2871) 2871 Prototype IDs (8) 160 Alien Tech Used (0) 0 Bonus (609) 609 TOTAL SCORE: 7725 Bonus ------- High Alert Combat Kills 487 Follower Combat Kills 276 Friendly Fire -154 Cogmind --------- Core Integrity 0/850 Matter 300/300 Energy 100/100 System Corruption 4% Temperature Cool (12) Movement Core (50) Location -6/Extension Parts ------- > --- POWER (1) -------- (None) > --- PROPULSION (3) --- (None) > --- UTILITY (9) ------ Advanced Terrain Scan Processor > --- WEAPON (2) ------- Heavy Particle Gun > --- INVENTORY (5) ---- (None) Peak State ------------ > --- POWER ------------ Light Nuclear Core > --- PROPULSION ------- Cooled VTOL Module Cooled VTOL Module Cooled VTOL Module > --- UTILITY ---------- Improved Sensor Array Improved Terrain Scanner Advanced Terrain Scan Processor Reaction Control System Makeshift Cloaking Device Hacking Suite Improved Field Recycling Unit > --- WEAPON ----------- Heavy Flail > --- INVENTORY -------- Xenon Bombardment Thruster Improved Sensor Array Thief Drone Bay Gauss Cannon Mini Grenade Launcher [Rating: 48] Favorites ----------- Power Ion Engine Engine Ion Engine Power Core Light Nuclear Core Propulsion Light Treads Treads Light Treads Leg Aluminum Leg Wheel Compact Wheel Hover Unit Gravmag System Flight Unit Cooled VTOL Module Utility Improved Targeting Computer Device Improved Sensor Array Storage High-capacity Storage Unit Processor Improved Targeting Computer Hackware Authchip [Device] Protection Utility Shielding Weapon Light Cannon Energy Gun EM Pulse Gun Energy Cannon Heavy Particle Cannon Ballistic Gun Assault Rifle Ballistic Cannon Light Cannon Launcher Mini Grenade Launcher Special Weapon Plasma Cutter Impact Weapon Heavy Flail Slashing Weapon Makeshift Axe Build | -11 -10 -10 -10 -9 -8 -7 -6 -6 ------- Run | Scr Mat Min Exi Min Mat Fac Fac Ext Slots Evolved 8 | . . . . . 4 2 2 . Power . | . . . . . . . . . Propulsion 1 | . . . . . 1 . . . Utility 7 | . . . . . 3 2 2 . Weapon . | . . . . . . . . . Parts Attached 151 | . 16 . 1 4 72 48 2 8 Power 16 | . 1 . 1 . 8 5 . 1 Engine 9 | . 1 . 1 . 6 1 . . Core 7 | . . . . . 2 4 . 1 Reactor . | . . . . . . . . . Propulsion 32 | . 2 . . 1 15 10 . 4 Treads 17 | . 2 . . . 14 1 . . Leg 1 | . . . . . . . . 1 Wheel 2 | . . . . 1 . . . 1 Hover 2 | . . . . . . . . 2 Flight 10 | . . . . . 1 9 . . Utility 45 | . 5 . . 1 18 18 2 1 Device 26 | . 1 . . 1 8 13 2 1 Storage 3 | . 2 . . . . 1 . . Processor 6 | . 1 . . . 4 1 . . Hackware 2 | . . . . . . 2 . . Protection 8 | . 1 . . . 6 1 . . Artifact . | . . . . . . . . . Weapon 58 | . 8 . . 2 31 15 . 2 Energy Gun 6 | . 2 . . . 2 . . 2 Energy Cannon 7 | . 1 . . . 5 1 . . Ballistic Gun 8 | . 2 . . 1 5 . . . Ballistic Cannon 14 | . 2 . . 1 7 4 . . Launcher 9 | . 1 . . . 6 2 . . Special Weapon 1 | . . . . . . 1 . . Impact Weapon 10 | . . . . . 3 7 . . Slashing Weapon 3 | . . . . . 3 . . . Piercing Weapon . | . . . . . . . . . Special Melee Weapon . | . . . . . . . . . Unidentified Prototypes 4 | . . . . . 2 1 . 1 Parts Lost 38 | . 4 . . 1 3 15 . 15 Power 6 | . . . . . 2 2 . 2 Propulsion 10 | . . . . . . 4 . 6 Utility 12 | . . . . 1 . 6 . 5 Weapon 10 | . 4 . . . 1 3 . 2 Highest Loss Streak 9 | . 4 . . 1 1 7 . 9 To Critical Strikes . | . . . . . . . . . Average Slot Usage (%) 91 | . 99 100 71 99 99 90 69 43 Engine 10 | . 14 14 14 14 8 . . . Core 1 | . . . . . . 6 6 2 Treads 22 | . 19 28 28 25 26 1 . . Leg 1 | . 8 . . . . . . . Flight 2 | . . . . . . 21 20 7 Device 6 | . 2 . . 1 11 24 22 11 Storage 10 | . 14 14 14 14 9 . . . Processor 13 | . 7 14 14 11 20 12 6 6 Protection 2 | . 4 . . . 3 5 . . Energy Gun 1 | . 6 . . . . . . . Energy Cannon 1 | . . . . . 3 . . . Ballistic Gun 6 | . 11 14 . 13 4 . . . Ballistic Cannon 7 | . 9 14 . 13 6 4 . . Naked Turns . | . . . . . . . . . Heaviest Build 65 | 12 53 50 50 52 65 62 15 15 Greatest Support 60 | 20 40 40 40 40 60 60 16 16 Greatest Overweight (x) 3 | . 2 1 1 3 2 1 . 3 Average Overweight (x) . | . . 1 1 1 . . . . Largest Inventory Capacity 20 | . 20 20 20 20 20 20 5 5 Average Capacity 17 | . 18 20 20 20 20 6 5 5 Most Carried 20 | . 20 20 20 20 20 20 4 5 Average Carried 16 | . 15 19 19 19 19 5 3 2 Final Capacity 20 | 8 20 20 20 20 20 5 5 5 Final Carried 20 | 6 20 20 20 20 20 3 4 . Class Distribution -------------------- 76% | Mutant 7% | Scavenger-Mutant 4% | Skirmisher 3% | Scout 3% | Ninja Dominant Class ---------------- Mutant | -10/Materials Mutant | -10/Mines Mutant | -10/Exiles Mutant | -9/Mines Mutant | -8/Materials Scout | -7/Factory Sprinter | -6/Factory Mutant | -6/Extension Resources | -11 -10 -10 -10 -9 -8 -7 -6 -6 ----------- Run | Scr Mat Min Exi Min Mat Fac Fac Ext Matter Collected 2882 | 200 285 105 . 118 1551 549 . 74 Remotely . | . . . . . . . . . Salvage Created 2887 | . 462 29 . 37 1896 431 32 . Parts 174 | . 31 3 . 1 108 31 . . Haulers Intercepted 5 | . 1 . . . 3 1 . . Recyclers Shooed 4 | . 1 . . . 1 . . 2 Parts Field Recycled . | . . . . . . . . . Retrieved Matter . | . . . . . . . . . Parts Self-Destructed . | . . . . . . . . . Prevented . | . . . . . . . . . Kills | -11 -10 -10 -10 -9 -8 -7 -6 -6 ------- Run | Scr Mat Min Exi Min Mat Fac Fac Ext Combat Hostiles Destroyed 71 | . 14 2 . 6 39 9 1 . Melee 1 | . . . . . . 1 . . Guns 20 | . 8 2 . 3 7 . . . Cannons 29 | . 4 . . 3 21 1 . . AOE 15 | . 2 . . . 8 5 . . Classes Destroyed 16 | . 5 . . 1 9 1 . . Worker 7 | . . . . . 5 2 . . Builder 5 | . 2 . . . 3 . . . Tunneler 2 | . . . . . 1 . 1 . Hauler 5 | . 1 . . . 3 1 . . Recycler 2 | . . . . . 1 1 . . Operator 6 | . 2 . . . 1 3 . . Drone 1 | . . . . . 1 . . . Watcher 5 | . . . . . 3 2 . . Swarmer 18 | . 6 2 . 1 3 5 1 . Cutter 2 | . . . . . . 2 . . Grunt 33 | . 8 . . . 25 . . . Brawler 1 | . . . . . 1 . . . Protector 1 | . . . . . 1 . . . Sentry 9 | . . . . . 8 1 . . Hunter 2 | . . . . . 1 1 . . Assembled 5 | . . . . 5 . . . . Best Kill Streak 10 | . 6 2 . 4 10 4 1 . Combat Bots Only 5 | . 5 2 . 4 4 3 1 . Max Kills in Single Turn 4 | . 1 1 . 2 3 4 1 . Gunslinging . | . . . . . . . . . Exploded 3 | . 1 . . . 2 3 . . Melee 1 | . . . . . . 1 . . Uniques/NPCs Destroyed . | . . . . . . . . . Combat | -11 -10 -10 -10 -9 -8 -7 -6 -6 -------- Run | Scr Mat Min Exi Min Mat Fac Fac Ext Damage Taken 7219 | . 612 31 . 227 2971 1677 131 1570 Core 1976 | . 93 8 . 30 406 587 43 809 Absorbed by Shields 107 | . . . . . . . 50 57 Redirected to Shielding 225 | . 19 . . . 186 20 . . Regen/Repaired (Parts) 507 | . 116 . . . 343 48 . . Core Remaining (%) 47 | 100 . . . 47 26 16 . . Volleys Fired 209 | . 49 5 . 13 109 33 . . Largest 2 | . 2 2 . 2 2 2 . . Hottest 120 | . 105 55 . 63 120 78 . . Shots Fired 373 | . 96 11 . 27 192 47 . . Gun 133 | . 69 6 . 14 44 . . . Cannon 197 | . 26 5 . 13 127 26 . . Launcher 28 | . 1 . . . 21 6 . . Special 15 | . . . . . . 15 . . Kinetic 245 | . 51 11 . 27 130 26 . . Thermal 67 | . 18 . . . 34 15 . . Explosive 21 | . 1 . . . 14 6 . . Electromagnetic 40 | . 26 . . . 14 . . . Robot Hit Streak 12 | . 6 2 . 4 12 9 . . Robot Miss Streak 7 | . 7 3 . 4 3 6 . . Penetration Max . | . . . . . . . . . Secondary Targets . | . . . . . . . . . Shots Hit Robots 257 | . 54 3 . 17 142 37 2 2 Core Hits 165 | . 29 2 . 12 98 23 . 1 Critical Kills . | . . . . . . . . . Critical Parts Destroyed 5 | . . . . . 1 4 . . Critical Strikes 10 | . 1 . . 1 3 5 . . Blast 5 | . 1 . . 1 2 1 . . Smash 5 | . . . . . 1 4 . . Melee Attacks 66 | . . . . . 16 39 5 6 Impact 62 | . . . . . 12 39 5 6 Slashing 4 | . . . . . 4 . . . Piercing . | . . . . . . . . . Sneak Attacks 7 | . . . . . 1 4 1 1 Combat Hostiles . | . . . . . . . . . Follow-up Attacks . | . . . . . . . . . Damage Inflicted 8545 | . 1101 58 . 358 4886 1823 194 125 Guns 1339 | . 554 38 . 189 558 . . . Cannons 2566 | . 275 20 . 169 1792 310 . . Explosions 3199 | . 256 . . . 2167 776 . . Melee 1297 | . . . . . 359 657 194 87 Ramming 64 | . 16 . . . 10 . . 38 Kinetic 2862 | . 442 58 . 358 1694 310 . . Thermal 1119 | . 328 . . . 711 80 . . Explosive 2115 | . 91 . . . 1248 776 . . Electromagnetic 1088 | . 224 . . . 864 . . . Impact 1297 | . . . . . 359 657 194 87 Slashing . | . . . . . . . . . Piercing . | . . . . . . . . . Highest Corruption 5 | . 2 2 2 5 1 5 1 4 Average Corruption 1 | . 1 2 2 2 1 4 1 1 Corruption Purged . | . . . . . . . . . Corruption Blocked . | . . . . . . . . . Effects 85 | . 10 25 24 13 4 5 . 4 Message Errors 20 | . 1 6 9 3 1 . . . Matter Fused 21 | . 1 7 7 1 2 2 . 1 Heat Flow Errors 6 | . 2 1 1 2 . . . . Energy Discharges 17 | . 2 4 5 3 1 2 . . Parts Rejected 1 | . . . . . . . . 1 Data Loss (minor) 10 | . 2 4 2 1 . 1 . . Data Loss (major) 5 | . 1 1 . 2 . . . 1 Misfires 3 | . 1 1 . 1 . . . . Alerts 2 | . . 1 . . . . . 1 Overload Shots . | . . . . . . . . . Overflow Damage 653 | . 31 . . 4 117 372 129 . Projectiles 49 | . 31 . . 4 14 . . . Explosions 170 | . . . . . 68 102 . . Melee 434 | . . . . . 35 270 129 . Knockbacks 26 | . 1 . . 4 15 4 2 . Impact 4 | . . . . . . 2 2 . Kinetic 20 | . 1 . . 4 13 2 . . Secondary 2 | . . . . . 2 . . . Self-Inflicted Damage 554 | . 73 . . . 218 246 . 17 Shots 18 | . 2 . . . 11 5 . . Rammed 20 | . 2 . . . 2 . . 16 Targets Rammed 22 | . 2 . . . 2 . . 18 Kicked 2 | . . . . . . . . 2 Crushed . | . . . . . . . . . Highest Temperature 569 | . 569 147 272 213 288 19 . 2 Average Temperature 92 | . 166 79 138 49 66 4 . 2 Received Heat Transfer 2287 | . 225 . . 60 1449 345 . 208 Effects 8 | . 7 . . . 1 . . . Shutdowns 1 | . 1 . . . . . . . Energy Bleed 4 | . 3 . . . 1 . . . Interference 3 | . 3 . . . . . . . Siege Activations . | . . . . . . . . . Robots Corrupted 3 | . . . . . 3 . . . Combat Hostiles 3 | . . . . . 3 . . . Parts Fried 12 | . . . . . 5 4 3 . Impact Corruptions 15 | . . . . . 3 7 5 . Robots Melted . | . . . . . . . . . Combat Hostiles . | . . . . . . . . . Parts Melted 2 | . . . . . 2 . . . Heat Transferred 2078 | . 657 . . . 1162 259 . . Parts Sabotaged . | . . . . . . . . . Parts Stolen . | . . . . . . . . . Parts Stripped . | . . . . . . . . . Power Chain Reactions 4 | . 3 . . . 1 . . . Missiles Intercepted . | . . . . . . . . . Alert | -11 -10 -10 -10 -9 -8 -7 -6 -6 ------- Run | Scr Mat Min Exi Min Mat Fac Fac Ext Peak Influence 1152 | . 256 65 . 81 1152 1123 630 329 Initial 545 | . . 2 . . . 523 545 308 Average 266 | . 100 12 . 28 357 782 572 267 Maximum Alert Level 4 | . 1 . . . 4 4 2 1 Low Security (%) 65 | . 88 100 . 100 54 . . 4 Level 1 5 | . 11 . . . 3 . . 95 Level 2 16 | . . . . . 29 43 100 . Level 3 11 | . . . . . 9 54 . . Level 4 1 | . . . . . 2 2 . . Level 5 . | . . . . . . . . . High Security . | . . . . . . . . . Max Security . | . . . . . . . . . Squads Dispatched 34 | . 5 . . . 10 13 2 4 Investigation 16 | . 2 . . . 3 5 2 4 Extermination 1 | . . . . . . 1 . . Reinforcement 13 | . 3 . . . 3 7 . . Assault 2 | . . . . . 2 . . . Garrison 2 | . . . . . 2 . . . Intercept . | . . . . . . . . . Searches Triggered 2 | . . . . . . 2 . . Construction Impeded 2 | . . . . . 1 1 . . Haulers Reinforced 1 | . . . . . . 1 . . Active Scanning Responses . | . . . . . . . . . Cargo Convoy Interrupts . | . . . . . . . . . Stealth | -11 -10 -10 -10 -9 -8 -7 -6 -6 --------- Run | Scr Mat Min Exi Min Mat Fac Fac Ext Distress Signals 10 | . 2 . . . 5 2 . 1 Communications Jammed 14 | . . . . . . 14 . . Distress Signals 14 | . . . . . . 14 . . Times Spotted 233 | . 39 3 . 15 76 75 4 21 Peak Tracking Total 13 | . 5 3 . 10 7 11 3 13 Tactical Retreats 40 | . 4 1 . 3 7 22 1 2 Traps | -11 -10 -10 -10 -9 -8 -7 -6 -6 ------- Run | Scr Mat Min Exi Min Mat Fac Fac Ext Traps Triggered 7 | . 4 . . . 1 1 1 . Indirectly . | . . . . . . . . . Trap Hack Attempts . | . . . . . . . . . Triggered . | . . . . . . . . . Disarmed . | . . . . . . . . . Reprogrammed . | . . . . . . . . . Reused . | . . . . . . . . . Traps Extracted . | . . . . . . . . . Installed . | . . . . . . . . . Triggered . | . . . . . . . . . Machines | -11 -10 -10 -10 -9 -8 -7 -6 -6 ---------- Run | Scr Mat Min Exi Min Mat Fac Fac Ext Machines Disabled 15 | . . . . 1 6 8 . . Max in Single Turn 3 | . . . . 1 2 3 . . Garrison Access 1 | . . . . . 1 . . . Machines Sabotaged . | . . . . . . . . . Garrisons Compromised . | . . . . . . . . . Overloaded Fab Kills . | . . . . . . . . . Hacking | -11 -10 -10 -10 -9 -8 -7 -6 -6 --------- Run | Scr Mat Min Exi Min Mat Fac Fac Ext Machines Accessed 46 | . 8 1 2 . 10 16 3 6 Terminals 28 | . 5 . . . 6 9 2 6 Fabricators 4 | . . . . . . 4 . . Repair Stations 4 | . 1 . . . 2 1 . . Recycling Units 4 | . 2 . . . 1 1 . . Scanalyzers 3 | . . . . . 1 1 1 . Garrison Access . | . . . . . . . . . Total Hacks 123 | . 27 1 2 . 33 39 8 13 Successful 67 | . 18 1 2 . 19 19 5 3 Failed 56 | . 9 . . . 14 20 3 10 Catastrophic 10 | . 2 . . . 2 3 1 2 Database Lockouts . | . . . . . . . . . Manual 25 | . 13 . 1 . 5 4 . 2 Terminals 71 | . 18 . . . 13 22 5 13 Fabricators 7 | . . . . . . 7 . . Repair Stations 16 | . 4 . . . 10 2 . . Recycling Units 10 | . 5 . . . 1 4 . . Scanalyzers 16 | . . . . . 9 4 3 . Garrison Access . | . . . . . . . . . Terminal Hacks 26 | . 8 1 2 . 2 8 2 3 Record 3 | . . . 2 . . . 1 . Part Schematic 1 | . . . . . . 1 . . Robot Schematic 1 | . . . . . . 1 . . Robot Analysis 3 | . 2 . . . 1 . . . Prototype ID Bank 2 | . 1 . . . 1 . . . Open Door 5 | . . 1 . . . . 1 3 Open DSF 1 | . . . . . . 1 . . Level Access Points 1 | . . . . . . 1 . . Branch Access Points 1 | . 1 . . . . . . . Fabricator Index 1 | . 1 . . . . . . . Unreport Threat 2 | . . . . . . 2 . . Hauler Manifests 3 | . 2 . . . . 1 . . Registered Components 2 | . 1 . . . . 1 . . Fabricator Hacks 4 | . . . . . . 4 . . Network Status 1 | . . . . . . 1 . . Load Schematic 1 | . . . . . . 1 . . Build 2 | . . . . . . 2 . . Repair Station Hacks 14 | . 4 . . . 8 2 . . Scan Component 7 | . 2 . . . 4 1 . . Repair 7 | . 2 . . . 4 1 . . Recycling Unit Hacks 7 | . 3 . . . 1 3 . . Report Inventory 4 | . 2 . . . 1 1 . . Retrieve Matter 1 | . . . . . . 1 . . Retrieve Components 2 | . 1 . . . . 1 . . Scanalyzer 12 | . . . . . 8 1 3 . Insert Component 6 | . . . . . 4 1 1 . Analyze 6 | . . . . . 4 . 2 . Garrison Access Hacks . | . . . . . . . . . Unauthorized Hacks 4 | . 3 . . . . 1 . . Terminals 1 | . 1 . . . . . . . Operators 1 | . 1 . . . . . . . Fabricators 1 | . . . . . . 1 . . Recompile 1 | . . . . . . 1 . . Repair Stations . | . . . . . . . . . Recycling Units 2 | . 2 . . . . . . . Monitor 1 | . 1 . . . . . . . Mask 1 | . 1 . . . . . . . Scanalyzers . | . . . . . . . . . Garrison Access . | . . . . . . . . . Data Cores Recovered . | . . . . . . . . . Used . | . . . . . . . . . Hacking Detections 34 | . 7 . . . 9 12 2 4 Full Trace Events 15 | . 3 . . . 2 4 2 4 Feedback Events 2 | . 1 . . . . 1 . . Corruption 2 | . 1 . . . . 1 . . Feedback Blocked . | . . . . . . . . . Robot Schematics Acquired 1 | . . . . . . 1 . . Robots Built 2 | . . . . . . 2 . . Authchips . | . . . . . . . . . Time 49 | . . . . . . 49 . . Total Robot Build Rating 4 | . . . . . . 4 . . Part Schematics Acquired 4 | . . . . . 2 1 1 . Parts Built 2 | . . . . . . 2 . . Authchips . | . . . . . . . . . Time 47 | . . . . . . 47 . . Total Part Build Rating 10 | . . . . . . 10 . . Parts Repaired 7 | . 2 . . . 4 1 . . Time 196 | . 52 . . . 106 38 . . Parts Recycled . | . . . . . . . . . Recycled Matter . | . . . . . . . . . Retrieved Matter . | . . . . . . . . . Retrieved Components 12 | . 7 . . . . 5 . . Parts Scanalyzed 5 | . . . . . 3 1 1 . Part Schematics Acquired 3 | . . . . . 2 . 1 . Parts Damaged . | . . . . . . . . . Bothacking | -11 -10 -10 -10 -9 -8 -7 -6 -6 ------------ Run | Scr Mat Min Exi Min Mat Fac Fac Ext Used RIF Installer . | . . . . . . . . . Robots Hacked . | . . . . . . . . . Non-combat . | . . . . . . . . . Combat . | . . . . . . . . . Robot Hacks Applied . | . . . . . . . . . Relay Couplers Released 2 | . . . . . 2 . . . Machine Destruction 2 | . . . . . 2 . . . Fabnet Peak Effective % . | . . . . . . . . . Robots Rewired 3 | . . . 3 . . . . . Allies Hacked . | . . . . . . . . . Hacks Repelled . | . . . . . . . . . Allies | -11 -10 -10 -10 -9 -8 -7 -6 -6 -------- Run | Scr Mat Min Exi Min Mat Fac Fac Ext Total Allies 15 | . . . 3 6 . 2 . 4 Largest Group 4 | . . . 3 4 3 2 . 2 Highest-Rated Group 159 | . . . 37 72 40 30 . 159 Highest-Rated Ally 159 | . . . 21 31 16 15 . 159 Total Orders 5 | . . . . . 5 . . . ROAM 1 | . . . . . 1 . . . RETURN 4 | . . . . . 4 . . . Ally Attacks 103 | . . . . 18 58 15 . 12 Total Damage 1471 | . . . . 173 345 553 . 400 Kills 16 | . . . . 5 4 4 . 3 Allies Corrupted . | . . . . . . . . . Allies Melted . | . . . . . . . . . Intel | -11 -10 -10 -10 -9 -8 -7 -6 -6 ------- Run | Scr Mat Min Exi Min Mat Fac Fac Ext Robot Analysis Total 3 | . 2 . . . 1 . . . Derelict Logs Recovered 2 | . . 1 . 1 . . . . Drone Launches 12 | . . . . . 10 2 . . Drone Recoveries 11 | . . . . . 9 2 . . Exploration | -11 -10 -10 -10 -9 -8 -7 -6 -6 ------------- Run | Scr Mat Min Exi Min Mat Fac Fac Ext Turns Passed 11383 | . 2023 1787 2411 815 2709 1383 63 192 Spaces Moved 6616 | 1 761 737 972 360 1098 2301 152 234 Core 56 | . . . . . . . . 56 Treads 3601 | . 493 737 972 262 1098 39 . . Legs 271 | 1 268 . . . . . . 2 Wheels 110 | . . . . 98 . . . 12 Hover 46 | . . . . . . . . 46 Flight 2532 | . . . . . . 2262 152 118 Fastest Speed 29 | 120 120 240 240 145 160 29 30 30 Average Speed 142 | 120 221 240 240 214 176 33 30 54 Slowest Speed 320 | 120 260 240 240 240 320 240 30 200 Overloaded Moves . | . . . . . . . . . Propulsion Burnouts . | . . . . . . . . . Robots Hopped 9 | . . . . . . 5 2 2 Cave-ins Triggered . | . . . . . . . . . Exploration Rate (%) 58 | 1 94 93 92 84 73 56 4 31 Regions Visited 8 Branch Regions 4 Pre-discovered Areas 1 | . . . . 1 . . . . Known Exits Taken 2 | . 1 . . . . 1 . . Unknown Exits Taken 6 | 1 . 1 1 1 1 . 1 . Scrap Searched 3 | . . 2 . 1 . . . . Spaces Dug 34 | . . . . . 12 22 . . Terrain Destroyed 222 | . 16 . . 1 115 90 . . Melee 26 | . . . . . 4 22 . . Projectile 8 | . . . . 1 7 . . . AOE 188 | . 16 . . . 104 68 . . Terrain Rammed . | . . . . . . . . . Walls Destroyed . | . . . . . . . . . Machines Disabled . | . . . . . . . . . Actions | -11 -10 -10 -10 -9 -8 -7 -6 -6 --------- Run | Scr Mat Min Exi Min Mat Fac Fac Ext Total 8058 | . 998 747 1055 377 1650 2791 158 282 Wait 760 | . 140 2 1 . 276 325 1 15 Move 6591 | . 760 736 971 359 1097 2290 148 230 Hop 8 | . . . . . . 5 1 2 Pick Up 80 | . 24 2 3 1 31 17 . 2 Fast Attach 44 | . 2 . . 2 16 20 2 2 Attach 37 | . 4 . . 1 13 14 . 5 Detach 10 | . . . 2 . 3 4 1 . Swap 70 | . 10 . 1 1 43 14 . 1 Drop 90 | . 7 2 6 . 44 30 . 1 Fire 209 | . 49 5 . 13 109 33 . . Melee 66 | . . . . . 16 39 5 6 Ram 16 | . . . . . . . . 16 Kick 2 | . . . . . . . . 2 Crush 4 | . 2 . . . 2 . . . Escape Stasis . | . . . . . . . . . Rewire 71 | . . . 71 . . . . . Trap . | . . . . . . . . . Miscellaneous . | . . . . . . . . . Route ------- -11/Scrapyard -10/Materials (discovered 5 exits: [*Mat x3] / *Min x2) -10/Mines (discovered 3 exits: [*Mat x2] / *Exi) -10/Exiles (discovered 2 exits: [*Min x2]) -9/Mines (discovered 2 exits: *Mat x2) -8/Materials (discovered 2 exits: *Fac x2) -7/Factory (discovered 7 exits: *Fac x4 / [*Sto] / [*Low x2]) -6/Factory -6/Extension History --------- Turn | Location | Event 1 | -11/Scrapyard | Discovered new exit (range 0) 1 | -11/Scrapyard | Entered Materials 1 | -10/Materials | Discovered new exit (range 8) 129 | -10/Materials | Discovered new exit (range 16) 310 | -10/Materials | Build established: Mutant 645 | -10/Materials | Lost 4 parts (4w) 658 | -10/Materials | Discovered new exit (range 16) 905 | -10/Materials | Discovered new exit (range 14) 1534 | -10/Materials | Identified exit to Mines 1843 | -10/Materials | Repaired Lgt. Cannon 1870 | -10/Materials | Repaired Lgt. Treads 2024 | -10/Materials | Entered Mines 2288 | -10/Mines | Discovered new exit (range 11) 2434 | -10/Mines | YI-UF0 nonchalantly dropped a Grenade Launcher on the ground 2463 | -10/Mines | Deemed a non-threat by the Exiles lab entrance 2463 | -10/Mines | Discovered new exit (range 5) 2530 | -10/Mines | Learned Materials non-interactive machine intel 2568 | -10/Mines | Discovered new exit (range 8) 2966 | -10/Mines | Found the Drone Emporium 2987 | -10/Mines | Found Prototype Device 3811 | -10/Mines | Entered Exiles 3811 | -10/Exiles | Found Exiles lab destroyed 3869 | -10/Exiles | Discovered new exit (range 15) 4695 | -10/Exiles | Discovered new exit (range 14) 6222 | -10/Exiles | Entered Mines 6222 | -9/Mines | Accompanied by 3 allies 6225 | -9/Mines | Received a Mining Laser from a helpful Derelict 6291 | -9/Mines | Discovered new exit (range 15) 6835 | -9/Mines | Assembled infested the area 6840 | -9/Mines | Assisted by a Guerilla fighting off Assembled 6894 | -9/Mines | Core integrity fell below 50% 7019 | -9/Mines | Discovered new exit (range 7) 7032 | -9/Mines | Assisted by bots powering up and referring to "LRC-V3" 7033 | -9/Mines | Learned location of Zion (-6) 7037 | -9/Mines | Entered Materials 7037 | -8/Materials | Accompanied by 3 allies 7037 | -8/Materials | Evolved 4 slots: Propulsion x1, Utility x3 7038 | -8/Materials | Loaded intel: 46 non-interactive machine locations 7200 | -8/Materials | Repaired Lgt. Treads 7482 | -8/Materials | Identified Thief Drone Bay 7696 | -8/Materials | Repaired Imp. Propulsion Shielding 7724 | -8/Materials | Repaired Lgt. Treads 8089 | -8/Materials | Discovered new exit (range 5) 8190 | -8/Materials | Repaired Imp. Light Cannon 8555 | -8/Materials | Garrison activated, responded to threat 8604 | -8/Materials | Build established: Scavenger-Mutant 9037 | -8/Materials | First assault squad dispatched 9134 | -8/Materials | Core integrity fell below 50% 9399 | -8/Materials | Garrison activated, responded to threat 9492 | -8/Materials | Build established: Mutant 9636 | -8/Materials | Discovered new exit (range 15) 9746 | -8/Materials | Entered Factory 9746 | -7/Factory | Evolved 2 slots: Utility x2 10247 | -7/Factory | Fabricated Nuclear Pulse Thruster? 10339 | -7/Factory | Discovered new exit (range 10) 10360 | -7/Factory | Discovered new exit (range 7) 10380 | -7/Factory | Discovered new exit (range 7) 10508 | -7/Factory | Discovered new exit (range 5) 10546 | -7/Factory | Search patrols dispatched 10732 | -7/Factory | Fabricated Y-45 Defender? 10877 | -7/Factory | Build established: Ninja 10928 | -7/Factory | Repaired Lgt. Nuclear Core 10946 | -7/Factory | Search patrols dispatched 10983 | -7/Factory | Core integrity fell below 50% 11022 | -7/Factory | Lost 7 parts (1p3n3u) 11039 | -7/Factory | Identified exit to Factory 11086 | -7/Factory | Core integrity fell below 20% 11097 | -7/Factory | Discovered new exit (range 15) 11119 | -7/Factory | Lost 3 parts (1n2w) 11129 | -7/Factory | Entered another Factory area 11129 | -6/Factory | Evolved 2 slots: Utility x2 11190 | -6/Factory | Discovered new exit (range 9) 11192 | -6/Factory | Entered Extension 11210 | -6/Extension | Rescued a captive Derelict 11211 | -6/Extension | Rescued a captive Derelict 11222 | -6/Extension | Build established: Sprinter 11314 | -6/Extension | Core integrity fell below 50% 11315 | -6/Extension | Lost 9 parts (2p4n2u1w) 11339 | -6/Extension | Rescued a captive Derelict 11359 | -6/Extension | Core integrity fell below 20% 11376 | -6/Extension | Rescued A7 11378 | -6/Extension | Spotted B-75 Beast 11384 | -6/Extension | Destroyed by Y-54 Guardian with Gatling Laser Last Messages --------------- 11368_ System corrupted: IFF burst signal emitted. 11368_ Slammed into U-05 Engineer. 11368_ Destabilizing: System corrupted (+1). 11371_ Slammed into Y-54 Guardian. 11375_ Connecting with Door Terminal... >>Open(Door) Sealed Heavy Doors opened. 11376_ A7: "I've been trapped here for some time now, I should probabl##AID::LRC-V3##I suddenly feel like you could use my help. Lead on." [Achievement: Prison Break] 11378_ Slammed into Y-54 Guardian. 11379_ Identified Hvy. Particle Gun. 11379_ Y-54 Guardian destroyed. 11380_ Acquired 3 matter. 11380_ Slammed into G-50 Soldier. 11382_ Slammed into Y-54 Guardian. 11383_ Penetrated by Slug. 11383_ Slug penetrates Wall. 11383_ Slammed into H-66 Slayer. Map ----- +----------------------------------------------------+ | #?# "??????????????????????????? | | #?# ### #T#??????????????????????????? | | ####+##### #?#######??????????????????????????? | | ! #??????????????????????????????????? | | #### #??????????????????????????????????? | | ???# * ! #############??????????????????????? | | ???# =% % %% #??????????????????????? | | ???# " " =%######## #??????????????????????? | | ???# "Y" %#??????# #??????????????????????? | | ??=+ """ [ #??????# #??????????????????????? | | ???######## ###??????# #??????????????????????? | | ??????????#%T#???????# #??????????????????????? | | ??????????#!##???????# Y#??????????????????????? | | ??????????#!#????????# ^ #??????????????????????? | | ??????????###????????# u#??????????????????????? | | ?????????????????????# #??????????????????????? | | ?????????????????????# #??????????????????????? | | ?????????????????????#### #??????????????????????? | | ????????????????????????#s#??????????????????????? | | ??????????????????????###%#??????????????????????? | | ????????????????????###T#%#??????????????????????? | | ????????????????????# %/%#??????????????????????? | | ????????????????????# # #g#??????????????????????? | | ????????????????????#####Y#??????????????????????? | | ????????????????????????#h#??????????????????????? | | ????????????????????????#@#??????????????????????? | | ????????????????????????#Y#??????????????????????? | | ????????????????????????"g"??????????????????????? | | ????????????????????????" "??????????????????????? | | ??????????????????????? gu ?????????????????????? | | ??????????????????????? ?????????????????????? | | ??????????????????????# R ????????????????????? | | ?????????????????????? ????????????????????? | | ?????????????????????? ???????????????????? | | ????????????????????? ???????????????????? | | ?????????????????????? ????????????????????? | | ??????????????????????k RkkR ????????????????????? | | ??????????????????????# BB ????????????????????? | | ??????????????????????? BB?????????????????????? | | ??????????????????????? ?????????????????????? | | ??????????????????????? ?????????????????????? | | ?????????????????????????????????????????????????? | | ?????????????????????????????????????????????????? | | ?????????????????????????????????????????????????? | | ?????????????????????????????????????????????????? | | | | | | | | | | | +----------------------------------------------------+ Best States ------------- Heat Dissipation 37 Energy Generation 18 Energy Capacity 290 Matter Stores 300 Matter Capacity 300 Sight Range 16 Robot Scan Range 15 Terrain Scan Range 16 Terrain Scan Density 210 Jamming Range 12 Cloak Strength 3 Additional Mass Support 9 Armor Coverage 150 Core Shielding 20 Propulsion Shielding 66 Utility Shielding 33 Evasion (%) 74 Targeting Accuracy 12 Recoil Reduction 3 Offensive Hacking 10 Authchip Count 1 Item Schematics ----------------- Lgt. Nuclear Core | -8/Materials | Scanalyzed Imp. Sensor Array | -8/Materials | Scanalyzed Mass Driver | -7/Factory | Hacked Gravmag System | -6/Factory | Scanalyzed Robot Schematics ------------------ B-36 Bruiser | -7/Factory | Hacked Fabricated ------------ Nuclear Pulse Thruster | x2 | -7/Factory | Preloaded Y-45 Defender | x2 | -7/Factory | Preloaded Alien Tech Used ----------------- None Achievements -------------- A New Friend Prison Break Challenges ------------ None Game ------ Seed AntigravImprinterSteel Manual? 0 Play Time 01:58:40 Cumulative 84.9 hours Start 2022.05.05 @ 17:50:04 End 2022.05.05 @ 19:56:40 Sessions 1 Manual Loads 0 Difficulty Rogue Special Mode None Game No. 89 Rogue 89 Adventurer 0 Explorer 0 Win Type - Total 0 Types 0/0/0/0/0/0/0/0/0 Lore% 25 Gallery% 34 Achievement% 28 Wizard Run 0 Options --------- ASCII 0 Keyboard 0 Movement Numpad Keybinds 0 Fullscreen 2 Font 18/Smallcaps Map View 76x50 Tactical HUD 1 Map Filters NONE Filters NONE Steam 1 RUN: 508a274d-5cce-43a9-bca1-a752e6e91fcb